[Event "Tsaghkadzor Open 2024"]
[Site "Tsaghkadzor"]
[Date "2024.10.04"]
[Round "7.1"]
[White "Karthik Venkataraman"]
[Black "Lysyj, Igor"]
[Result "1/2-1/2"]
[ECO "D33"]
[WhiteElo "2581"]
[BlackElo "2589"]
[Annotator "TA"]
[PlyCount "50"]
[EventDate "2024.09.13"]
[EventType "swiss"]
[EventCountry "ARM"]
[SourceTitle "playchess.com"]
[Source "ChessBase"]
[SourceQuality "1"]
[TimeControl "40/5400+30:1800+30"]

{[%evp 22,29,44,85,63,65,57,67,76,19]} 1. c4 {[%emt 0:00:03]} e6 {[%emt 0:00:13]} 2. Nc3 {[%emt 0:00:06]} c5 {[%emt 0:00:09]} 3. Nf3 {[%emt 0:00:33][%cal Bg1f3,Bf3d4,Bd4b3][%mdl 32] EV=10.72. Goes to b3 (dbg))} Nf6 {[%emt 0:00:12]} 4. g3 {[%emt 0:00:11]} d5 {[%emt 0:00:16]} 5. cxd5 {[%emt 0:00:14]} exd5 {[%emt 0:00:04]} 6. d4 {[%emt 0:00:11]} Nc6 {[%emt 0:00:03]} 7. Bg2 {[%emt 0:00:29]} cxd4 {[%emt 0:00:11]} 8. Nxd4 {[%emt 0:00:05]} Bc5 {[%emt 0:00:04]} 9. Nb3 {[%emt 0:00:05]} Bb4 {[%emt 0:00:14]} 10. O-O {[%emt 0:00:28]} Bxc3 {[%emt 0:01:24]} 11. bxc3 {[%emt 0:00:03]} O-O {[%emt 0:00:06]} 12. Bg5 {[%emt 0:10:27]} h6 {[%emt 0:01:57] D33: Tarrasch Verdediging: 6 g3 Zijvarianten.} 13. Bxf6 {[%emt 0:00:08] OK} Qxf6 {[%emt 0:00:02]} 14. Qxd5 {[%emt 0:03:13] Beste} ({Natuurlijk niet} 14. Bxd5 Bh3 $11) 14... Qxc3 {[%emt 0:00:31] OK} {Wit kan overwegen} 15. Qc5 {[%emt 0:01:31] Wit voelde zich onwel na de opening.   Blunder waarde: Wit=0.00 (foutloos) /Zwart=0.00 (foutloos) . Fout (0.6).  Fout:        	Wit=1      	---        OK:         	Wit=1      	Zwart=1      Beste:        	Wit=1      	---} (15. e3 $16) {Predecessor:} 15... Qb2 $146 16. e3 Be6 17. Rfb1 Qf6 18. Bxc6 bxc6 19. Qxc6 Rac8 20. Qb7 Rc2 21. Rf1 Bh3 22. Nd4 Rd2 23. Qxa7 Rxd4 24. Qxd4 Qf3 25. Qe4 Qxe4 {0-1 Saya,E (2217)-Lysyj,I (2589) Titled Tuesday intern op 08th Aug Early blitz 2023 (10)} 1/2-1/2

[Event "Tsaghkadzor Open 2024"]
[Site "Tsaghkadzor"]
[Date "2024.10.04"]
[Round "7.2"]
[White "Andriasian, Zaven"]
[Black "Kornienko, Konstantin"]
[Result "1/2-1/2"]
[ECO "B30"]
[WhiteElo "2558"]
[BlackElo "2058"]
[Annotator "RC"]
[PlyCount "125"]
[EventDate "2024.09.13"]
[EventType "swiss"]
[EventCountry "ARM"]
[SourceTitle "playchess.com"]
[Source "ChessBase"]
[SourceQuality "1"]
[TimeControl "40/5400+30:1800+30"]

1. e4 {[%emt 1:31:00]} c5 {[%emt 1:31:00]} 2. Nf3 {[%emt 0:00:30]} Nc6 {[%emt 0:00:30]} 3. Bb5 {[%emt 0:00:30]} e6 {[%emt 0:00:30]} 4. O-O {[%emt 0:00:30]} Nge7 {[%emt 0:00:30]} 5. c3 {[%emt 0:00:30]} d5 {[%emt 0:00:30]} 6. exd5 {[%emt 0:00:30]} Qxd5 {[%emt 0:00:30]} 7. d4 {[%emt 0:00:30]} cxd4 {[%emt 0:00:30]} 8. Qe2 {[%emt 0:00:30]} Nf5 {[%emt 0:00:30]} 9. Rd1 {[%emt 0:00:30]} Bd7 {[%emt 0:00:30]} 10. Nbd2 {[%emt 0:00:30]} Nd6 {[%emt 0:00:30]} 11. Bd3 {[%emt 0:00:30]} Be7 {[%emt 0:00:30]} 12. Ne4 {[%emt 0:00:30]} O-O {[%emt 0:00:30]} 13. c4 {[%emt 0:00:30]} Qh5 {[%emt 0:00:30]} 14. Ng3 {[%emt 0:00:30]} Qc5 {[%emt 0:00:30]} 15. b3 {[%emt 0:00:30]} a5 {[%emt 0:00:30]} 16. a3 {[%emt 0:00:30]} e5 {[%emt 0:00:30]} 17. Bd2 {[%emt 0:00:30]} f5 {[%emt 0:00:30]} 18. b4 {[%emt 0:00:30]} axb4 {[%emt 0:00:30]} 19. axb4 {[%emt 0:00:30]} Nxb4 {[%emt 0:00:30]} 20. Bxb4 {[%emt 0:00:30]} Qxb4 {[%emt 0:00:30]} 21. Rxa8 {[%emt 0:00:30]} Rxa8 {[%emt 0:00:30]} 22. Nxe5 {[%emt 0:00:30]} Be8 {[%emt 0:00:30]} 23. Nxf5 {[%emt 0:00:30]} Nxf5 {[%emt 0:00:30]} 24. Bxf5 {[%emt 0:00:30]} Bf6 {[%emt 0:00:30]} 25. Nd3 {[%emt 0:00:30]} Qe7 {[%emt 0:00:30]} 26. Qg4 {[%emt 0:00:30]} g6 {[%emt 0:00:30]} 27. Re1 {[%emt 0:00:30]} Qg7 {[%emt 0:00:30]} 28. Be4 {[%emt 0:00:30]} Bd7 {[%emt 0:00:30]} 29. Qf3 {[%emt 0:00:30]} Rf8 {[%emt 0:00:30]} 30. Bxb7 {[%emt 0:00:30]} Kh8 {[%emt 0:00:30]} 31. Bd5 {[%emt 0:00:30]} Bh4 {[%emt 0:00:30]} 32. Qe4 {[%emt 0:00:30]} Qf6 {[%emt 0:00:30]} 33. Qf3 {[%emt 0:00:30]} Qg7 {[%emt 0:00:30]} 34. Qe2 {[%emt 0:00:30]} Bf5 {[%emt 0:00:30]} 35. g3 {[%emt 0:00:30]} Bxd3 {[%emt 0:00:30]} 36. Qxd3 {[%emt 0:00:30]} Be7 {[%emt 0:00:30]} 37. Re6 {[%emt 0:00:30]} Bc5 {[%emt 0:00:30]} 38. Kg2 {[%emt 0:00:30]} Qa7 {[%emt 0:00:30]} 39. h4 {[%emt 0:00:30]} Qa2 {[%emt 0:00:30]} 40. Re2 {[%emt 0:00:30]} Qa7 {[%emt 0:00:30]} 41. Qe4 {[%emt 0:30:30]} Qg7 {[%emt 0:30:30]} 42. f4 {[%emt 0:00:30]} Rb8 {[%emt 0:00:30]} 43. Qd3 {[%emt 0:00:30]} Qd7 {[%emt 0:00:30]} 44. Qe4 {[%emt 0:00:30]} Qg7 {[%emt 0:00:30]} 45. Ra2 {[%emt 0:00:30]} Qe7 {[%emt 0:00:30]} 46. Be6 {[%emt 0:00:30]} Qb7 {[%emt 0:00:30]} 47. Qxb7 {[%emt 0:00:30]} Rxb7 {[%emt 0:00:30]} 48. Ra5 {[%emt 0:00:30]} Rb2+ {[%emt 0:00:30]} 49. Kf3 {[%emt 0:00:30]} Bb4 {[%emt 0:00:30]} 50. Ra8+ {[%emt 0:00:30]} Kg7 {[%emt 0:00:30]} 51. Ra7+ {[%emt 0:00:30]} Kh8 {[%emt 0:00:30]} 52. g4 {[%emt 0:00:30]} Rb3+ {[%emt 0:00:30]} 53. Ke4 {[%emt 0:00:30]} Re3+ {[%emt 0:00:30]} 54. Kd5 {[%emt 0:00:30]} d3 {[%emt 0:00:30]} 55. Ra8+ {[%emt 0:00:30]} Kg7 {[%emt 0:00:30]} 56. Ra7+ {[%emt 0:00:30]} Kf8 {[%emt 0:00:30]} 57. Ra8+ {[%emt 0:00:30]} Ke7 {[%emt 0:00:30]} 58. Ra7+ {[%emt 0:00:30]} Kf8 {[%emt 0:00:30]} 59. Rf7+ {[%emt 0:00:30]} Ke8 {[%emt 0:00:30]} 60. Rxh7 {[%emt 0:00:30]} d2 {[%emt 0:00:30]} 61. Bd7+ {[%emt 0:00:30]} Kf8 {[%emt 0:00:30]} 62. Ba4 {[%emt 0:00:30]} Ra3 {[%emt 0:00:30]} 63. Ke4 {[%emt 0:00:30]} 1/2-1/2

[Event "Tsaghkadzor Open 2024"]
[Site "Tsaghkadzor"]
[Date "2024.10.04"]
[Round "7.3"]
[White "Hayrapetyan, Hovik"]
[Black "Lobanov, Sergei"]
[Result "1/2-1/2"]
[ECO "E51"]
[WhiteElo "2464"]
[BlackElo "2506"]
[Annotator "TA"]
[PlyCount "97"]
[EventDate "2024.09.13"]
[EventType "swiss"]
[EventCountry "ARM"]
[SourceTitle "playchess.com"]
[Source "ChessBase"]
[SourceQuality "1"]
[TimeControl "40/5400+30:1800+30"]

{[%evp 12,97,0,0,8,-10,0,0,0,0,15,0,0,0,0,0,13,10,5,0,0,0,0,0,66,49,70,65,52,0,0,0,0,0,0,0,0,0,0,0,0,0,0,0,0,0,0,-48,-48,-41,0,0,0,0,0,0,0,0,0,0,0,0,0,0,0,0,0,0,0,0,0,0,0,-14,-14,-14,0,0,0,0,0,0,0,0,0,0,0,0]} 1. d4 {[%emt 0:00:03]} Nf6 {[%emt 0:00:07]} 2. c4 {[%emt 0:00:06]} e6 {[%emt 0:00:05]} 3. Nc3 {[%emt 0:00:17]} d5 {[%emt 0:00:05]} 4. Nf3 {[%emt 0:00:12]} Bb4 {[%emt 0:00:17]} 5. e3 {[%emt 0:00:10]} O-O {[%emt 0:00:17]} 6. Bd2 {[%emt 0:00:06]} Nbd7 {[%emt 0:00:38]} 7. a3 {[%emt 0:01:40]} Be7 {[%emt 0:01:22]} 8. cxd5 {[%emt 0:03:02]} exd5 {[%emt 0:00:08]} 9. Bd3 {[%emt 0:01:57]} c6 {[%emt 0:01:21]} 10. O-O {[%emt 0:11:13]} a5 {[%emt 0:02:21]} 11. Rb1 {[%emt 0:12:08]} Bd6 {[%emt 0:01:13]} 12. Qc2 {[%emt 0:06:37]} Re8 {[%emt 0:01:54]} 13. Rfe1 {[%emt 0:01:08]} Nf8 {[%emt 0:11:29]} 14. h3 {[%emt 0:01:02] Prevents Bg4} Bd7 $1 {[%emt 0:11:40]} 15. e4 {[%emt 0:05:01]} dxe4 {[%emt 0:00:42]} 16. Nxe4 {[%emt 0:00:04]} Nxe4 {[%emt 0:01:24]} 17. Bxe4 {[%emt 0:00:15]} Ng6 {[%emt 0:01:15]} (17... Be6 $1 $11) 18. d5 $14 {[%emt 0:18:31][%cal Rd5c6]} c5 {[%emt 0:15:05]} 19. a4 {[%emt 0:01:09]} Qc7 {[%emt 0:03:53]} 20. Qc4 {[%emt 0:06:48]} (20. b3 $14) 20... Ne5 $11 {[%emt 0:13:54]} 21. Nxe5 {[%emt 0:00:36]} Bxe5 {[%emt 0:00:41]} 22. Bc3 {[%emt 0:01:00]} Bxc3 {[%emt 0:11:58]} 23. bxc3 {[%emt 0:00:17]} Qd6 {[%emt 0:00:05]} 24. Bc2 {[%emt 0:01:09]} (24. Rxb7 $2 {too greedy.} f5 25. f3 (25. Rxd7 $2 Qxd7 26. d6+ Kh8 $19) 25... fxe4 26. fxe4 Re5 $19) 24... Rxe1+ {[%emt 0:01:53]} 25. Rxe1 {[%emt 0:00:14]} g6 {[%emt 0:00:08]} 26. h4 {[%emt 0:05:59]} h5 {[%emt 0:01:47]} 27. g3 {[%emt 0:02:37]} b6 {[%emt 0:01:17]} 28. Qf1 {[%emt 0:06:45]} Qf6 {[%emt 0:04:18]} (28... Qxd5 $2 {perishes.} 29. Be4 Qe5 30. Bxa8 $18) 29. c4 {[%emt 0:09:20]} (29. Re3 $11 {is superior.}) 29... Qc3 $1 $15 {[%emt 0:02:49]} 30. Bd1 {[%emt 0:01:03]} Re8 {[%emt 0:05:57] Against Re7} 31. Rxe8+ {[%emt 0:00:06] The position is equal.} Bxe8 $11 {[%emt 0:00:01][%mdl 4096] Endgame. KQB-KQB} 32. Qe2 {[%emt 0:00:52]} Kf8 {[%emt 0:00:22]} 33. Kg2 {[%emt 0:02:24]} Bd7 {[%emt 0:01:07]} 34. Qc2 {[%emt 0:00:12] Inhibits Bf5.} Qd4 {[%emt 0:01:25]} 35. Bf3 {[%emt 0:00:14]} Ke7 {[%emt 0:00:25]} 36. Qb3 {[%emt 0:00:43]} Qf6 {[%emt 0:00:04]} 37. Qe3+ {[%emt 0:00:21]} Kd6 {[%emt 0:00:32]} 38. Bd1 {[%emt 0:00:22]} Qd4 {[%emt 0:03:01][%cal Od4c4] [#] aiming for ...Qxc4!} 39. Qf4+ {[%emt 0:00:51]} Qxf4 {[%emt 0:01:01]} 40. gxf4 {[%emt 0:00:00] KB-KB} Bf5 {[%emt 0:00:00]} 41. Bb3 {[%emt 0:15:26]} Ke7 {[%emt 0:23:47]} 42. f3 {[%emt 0:04:15]} Kf6 {[%emt 0:00:49]} 43. Kf2 {[%emt 0:00:13]} Bb1 {[%emt 0:00:04]} 44. Ke3 {[%emt 0:00:20]} Kf5 {[%emt 0:01:04]} 45. Bd1 {[%emt 0:01:01]} Kf6 $1 {[%emt 0:00:41]} 46. Kd2 {[%emt 0:02:48]} Bf5 {[%emt 0:00:08]} 47. Bc2 {[%emt 0:00:56]} Bd7 {[%emt 0:00:06]} 48. Ke3 {[%emt 0:00:14]} Be8 {[%emt 0:01:09]} 49. Ke4 {[%emt 0:13:13] Weighted Error Value: White=0.04 (flawless) /Black=0.06 (flawless) .  Mistake:       	White=2     	Black=1      Inaccurate:     	---       	Black=1      OK:         	White=21    	Black=18     Strong:       	---       	Black=3} 1/2-1/2

[Event "Tsaghkadzor Open 2024"]
[Site "Tsaghkadzor"]
[Date "2024.10.04"]
[Round "7.4"]
[White "Gabuzyan, Hovhannes"]
[Black "Audi Ameya"]
[Result "1/2-1/2"]
[ECO "B21"]
[WhiteElo "2579"]
[BlackElo "2413"]
[Annotator "TA"]
[PlyCount "103"]
[EventDate "2024.09.13"]
[EventType "swiss"]
[EventCountry "ARM"]
[SourceTitle "playchess.com"]
[Source "ChessBase"]
[SourceQuality "1"]
[TimeControl "40/5400+30:1800+30"]

{[%evp 9,103,-7,30,8,11,6,34,8,47,10,5,-19,43,-10,11,16,45,31,98,31,74,124,98,26,69,0,0,-10,-5,-72,-50,-72,14,21,47,35,53,40,42,42,55,55,760,59,57,61,44,15,32,53,166,131,158,165,157,60,120,56,74,70,70,66,66,69,63,69,67,55,55,49,59,32,32,32,32,28,28,28,28,28,28,28,28,28,28,28,28,28,28,28,28,28,28,23,14,9]} 1. e4 {[%emt 0:00:01]} c5 {[%emt 0:00:04]} 2. d4 {[%emt 0:00:04]} cxd4 {[%emt 0:00:05]} 3. Qxd4 {[%emt 0:00:04]} Nc6 {[%emt 0:03:20]} 4. Qd3 {[%emt 0:00:04]} Nf6 {[%emt 0:00:23]} 5. Nc3 {[%emt 0:00:04]} g6 {[%emt 0:04:39]} 6. Nf3 {[%emt 0:00:15] B21: Siciliaans: 2 f4 en Morra Gambiet.} Bg7 {[%emt 0:01:00]} 7. Be2 {[%emt 0:00:08] OK} O-O {[%emt 0:01:39][%cal Od7d5] OK} 8. O-O {[%emt 0:00:05] OK. Wit staat iets beter.} d6 {[%emt 0:05:57] Onnauwkeurig} 9. Nd5 {[%emt 0:00:04] Onnauwkeurig} Nd7 {[%emt 0:07:02]} 10. c3 {[%emt 0:00:35]} Nc5 {[%emt 0:01:27] Fout (0.6)} (10... e6 $11 11. Ne3 Nc5) 11. Qc2 {[%emt 0:00:04] Fout (0.5)} (11. Qe3 $14) 11... f5 {[%emt 0:13:23]} 12. exf5 {[%emt 0:03:12] OK} Bxf5 {[%emt 0:00:03] Onnauwkeurig} 13. Qd1 {[%emt 0:00:04] OK} {Zwart zou moeten spelen} h6 $146 {[%emt 0:06:01] Fout (0.7)} (13... Kh8 $14) ({Predecessor:} 13... Kh8 14. Bg5 h6 15. Be3 g5 16. Bxc5 dxc5 17. Ne3 Bg6 18. Qxd8 Rfxd8 19. Rfd1 a6 {0-1 Shimanov,A (2576)-Vidit,S (2727) Titled Tuesday intern op 16th Apr Early blitz 2024 (6)}) 14. Be3 {[%emt 0:02:57] Fout (0.7)} (14. Nd4 $1 $16) 14... g5 {[%emt 0:02:11] Onnauwkeurig} 15. Bxc5 {[%emt 0:06:45] OK} dxc5 {[%emt 0:00:06]} {Wit zou moeten spelen} 16. Re1 {[%emt 0:00:04] Fout (0.7)} (16. Ne3 $16) 16... Kh8 {[%emt 0:02:04] Onnauwkeurig} 17. Bb5 {[%emt 0:02:56] Fout (0.7)} (17. Ne3 $14) 17... Nd4 $1 $11 {[%emt 0:02:44] Sterk} 18. cxd4 {[%emt 0:04:40]} Qxd5 {[%emt 0:00:12] OK} 19. dxc5 {[%emt 0:00:21] Houdt de partij in balans. Fout (0.7)} (19. Rxe7 $11 Rad8 20. Qb3) 19... Qxc5 $17 {[%emt 0:00:26]} 20. Qe2 {[%emt 0:00:42][%cal Ob5a4] OK} Bg4 {[%emt 0:13:37] Het loperpaar is mooi.. Fout (0.9)} (20... Rad8 $17 {Sterke dreiging met ...g4.} 21. Rac1 Qb6) 21. Rac1 $11 {[%emt 0:02:13] OK} Qb6 {[%emt 0:02:56] Onnauwkeurig} 22. Bd3 $1 {[%emt 0:01:16] Hoopt vervolgens op Rc4. Sterk} Qxb2 {[%emt 0:01:05]} 23. Qxe7 {[%emt 0:01:29] OK} Bxf3 {[%emt 0:04:30] OK} 24. gxf3 $40 {[%emt 0:00:17][%mdl 128] Wit valt aan.} Rxf3 {[%emt 0:00:16]} 25. Qe4 $1 {[%emt 0:04:58][%csl Gd3][%cal Re4h7] Sterk} Qxf2+ {[%emt 0:00:05] Beste (Gemakkelijk)} ({Ondeugdelijk is} 25... Rxf2 26. Qh7#) 26. Kh1 {[%emt 0:00:02][%csl Gd3][%cal Re4h7] Gemiste overwinning (7.0)} Rxd3 $1 {[%emt 0:00:07] Sterk} 27. Qxd3 {[%emt 0:00:03]} Qxa2 {[%emt 0:00:10] OK} 28. Re7 {[%emt 0:02:45] Onnauwkeurig} Qb2 {[%emt 0:02:56]} 29. Rcc7 {[%emt 0:02:17] Erg scherp! OK} (29. Rc2 $5 {lijkt wild.} Qa1+ 30. Kg2 Qf6 31. Rxb7 Rf8 32. Rbc7) {Zwart zou moeten proberen} 29... Qd4 {[%emt 0:03:04] Fout (1.1)} (29... Qa1+ $14 30. Kg2 Qb2+ 31. Qc2 Qxc2+ 32. Rxc2 b6) 30. Qxd4 $18 {[%emt 0:00:43] Beste (Gemakkelijk)} Bxd4 {[%emt 0:00:03][%mdl 4096] Eindspel. KRR-KRB} {Advantageous for White to attempt.} 31. Rcd7 $1 {[%emt 0:00:06] Sterk} (31. Rxb7 a5 $14) 31... Bc3 {[%emt 0:01:33] [#] OK} {Wit zou moeten proberen} 32. Rc7 {[%emt 0:01:30] Wit is actiever. Fout (1.0)} ({Veel minder sterk is} 32. Rxb7 $6 a5 $16) (32. Rh7+ $1 $16 Kg8 33. Rxh6 (33. Rxb7 a5 $14)) {Beter is} 32... Bd4 {[%emt 0:00:28] [#] Fout (0.6)} (32... Ba1 $1 $14) 33. Red7 {[%emt 0:00:04] Fout (0.6)} ({Speel niet} 33. Rxb7 Kg8 $14) (33. Rcd7 $1 $16 {[%cal Rd7d4]} Bc3 34. Rh7+ (34. Rxb7 a5 $14) 34... Kg8 35. Rxh6 (35. Rxb7 Rb8 $14)) 33... Be5 {[%emt 0:00:51]} 34. Rxb7 {[%emt 0:00:24]} a5 {[%emt 0:00:30][%cal Ba7a5,Ba5a4,Ba4a3][%mdl 32] EV=14.00. Goes to a3 (dbg)). OK} 35. Rh7+ {[%emt 0:00:04] OK} Kg8 {[%emt 0:00:04]} 36. Rxh6 {[%emt 0:00:03] En nu zou Rg6+ winnen. OK} a4 $1 {[%emt 0:00:40] Sterk} 37. Rbb6 {[%emt 0:01:40] Rbg6+ is de sterke dreiging. OK} a3 {[%emt 0:02:09] ...a2 zou dodelijk zijn. OK} 38. Ra6 {[%emt 0:00:09] OK} Rxa6 {[%emt 0:00:09] OK} 39. Rxa6 $14 {[%emt 0:00:12] KR-KB} Bb2 {[%emt 0:00:04] OK} 40. Ra7 {[%emt 0:00:00] Onnauwkeurig} g4 $1 {[%emt 0:00:00] Sterk} 41. Kg2 {[%emt 0:15:14] OK} Kf8 {[%emt 0:23:59] Beste (Gemakkelijk)} 42. Ra5 {[%emt 0:01:52]} Ke7 {[%emt 0:00:47] OK} 43. Kg3 {[%emt 0:00:05] OK} Kd6 {[%emt 0:00:10] OK} 44. Kxg4 {[%emt 0:00:04] Zwart moet nu h4 voorkomen. OK} Kc6 {[%emt 0:00:18] OK} 45. Kf4 {[%emt 0:00:28] OK} Kb6 {[%emt 0:00:06] Beste (Gemakkelijk)} 46. Ra8 {[%emt 0:00:05] OK} Kc5 {[%emt 0:01:18] OK} 47. Ke3 {[%emt 0:00:04] OK} Kc4 {[%emt 0:00:14]} 48. Kd2 {[%emt 0:00:05] OK} Kb3 {[%emt 0:00:19] OK} 49. Rb8+ {[%emt 0:00:06] OK} Kc4 $1 {[%emt 0:00:34] Sterk} 50. Kc2 {[%emt 0:00:14] met als doel voor h4. OK} Be5 $1 {[%emt 0:00:23][%csl LRb8,LRh2] Sterk} 51. Rc8+ {[%emt 0:00:25]} Kb4 {[%emt 0:01:22] OK} 52. Ra8 {[%emt 0:00:17] Blunder waarde: Wit=0.17 (erg precies) /Zwart=0.17 (erg precies) .  Gemiste overwinning: 	Wit=1      	---        Fout:        	Wit=7      	Zwart=5      Onnauwkeurig:    	Wit=3      	Zwart=5      OK:         	Wit=22     	Zwart=15     Beste:        	Wit=1      	Zwart=3      Sterk:        	Wit=3      	Zwart=6} 1/2-1/2

[Event "Tsaghkadzor Open 2024"]
[Site "Tsaghkadzor"]
[Date "2024.10.04"]
[Round "7.5"]
[White "Davtyan, Arsen"]
[Black "Nozdrachev, Vladislav"]
[Result "1/2-1/2"]
[ECO "D37"]
[WhiteElo "2377"]
[BlackElo "2515"]
[Annotator "TA"]
[PlyCount "111"]
[EventDate "2024.09.13"]
[EventType "swiss"]
[EventCountry "ARM"]
[SourceTitle "playchess.com"]
[Source "ChessBase"]
[SourceQuality "1"]
[TimeControl "40/5400+30:1800+30"]

{[%evp 25,111,15,25,25,25,0,0,0,0,0,0,0,0,0,0,-2,0,6,10,0,4,0,10,0,0,0,0,0,23,0,0,-4,24,21,19,18,18,10,17,12,12,0,12,0,17,0,2,7,11,0,6,0,0,0,0,0,0,0,0,0,0,0,0,0,0,0,0,0,445,455,485,487,577,541,767,728,597,0,0,0,6,0,0,0,0,0,0,0]} 1. d4 {[%emt 0:00:02]} d5 {[%emt 0:00:09]} 2. c4 {[%emt 0:00:05]} e6 {[%emt 0:00:03]} 3. Nf3 {[%emt 0:00:16]} Nf6 {[%emt 0:00:06]} 4. Nc3 {[%emt 0:00:12]} Be7 {[%emt 0:00:05]} 5. Bf4 {[%emt 0:00:09]} O-O {[%emt 0:00:06]} 6. e3 {[%emt 0:00:05]} b6 {[%emt 0:00:05]} 7. Bd3 {[%emt 0:05:41]} dxc4 {[%emt 0:01:55]} 8. Bxc4 {[%emt 0:00:04]} Bb7 {[%emt 0:00:05]} 9. O-O {[%emt 0:03:06]} a6 {[%emt 0:01:27] D37: Queen's Gambit Declined: 5 Bf4.} 10. Qe2 {[%emt 0:04:26]} b5 {[%emt 0:11:30]} 11. Bd3 {[%emt 0:00:47]} Nbd7 {[%emt 0:12:37]} 12. Rad1 {[%emt 0:22:43]} c5 $146 {[%emt 0:03:44]} ({Predecessor:} 12... Bd6 13. Ne5 Qe7 14. Bg3 Nb6 15. Ng4 Bxg3 16. Nxf6+ Qxf6 17. hxg3 Nd7 18. Ne4 Qe7 {1-0 Gunina,V (2435)-Khamdamova,A (2291) Swiss Queens Wed #27 blitz 2024 (9)}) 13. dxc5 {[%emt 0:03:24]} b4 {[%emt 0:00:06]} 14. Na4 {[%emt 0:01:28]} Qa5 {[%emt 0:01:30]} 15. Nb6 {[%emt 0:03:55]} Nxb6 {[%emt 0:03:29]} 16. cxb6 {[%emt 0:00:05]} Qxb6 {[%emt 0:00:27]} 17. e4 {[%emt 0:13:52]} Rfd8 {[%emt 0:08:17]} 18. Ne5 {[%emt 0:03:19]} a5 {[%emt 0:09:12]} 19. Nc4 {[%emt 0:05:25]} Qc6 {[%emt 0:06:03]} 20. f3 {[%emt 0:12:34]} Nh5 {[%emt 0:03:31]} 21. Be3 {[%emt 0:00:34]} Bc5 {[%emt 0:02:57]} 22. g3 {[%emt 0:01:31]} Ba6 {[%emt 0:01:27]} 23. b3 {[%emt 0:03:52]} Nf6 {[%emt 0:00:20]} 24. Kg2 {[%emt 0:00:38]} Bxc4 {[%emt 0:02:14]} 25. Bxc4 {[%emt 0:00:15]} Bxe3 {[%emt 0:00:17]} 26. Qxe3 {[%emt 0:00:06]} Nd7 {[%emt 0:04:28]} 27. Qg5 {[%emt 0:06:23]} Qb6 {[%emt 0:02:53]} 28. Rf2 {[%emt 0:02:21]} Nf8 {[%emt 0:01:07]} 29. Rfd2 {[%emt 0:00:48]} Rxd2+ {[%emt 0:00:14]} 30. Qxd2 {[%emt 0:01:50]} h6 {[%emt 0:02:00]} 31. Qd4 {[%emt 0:01:47]} Qc7 {[%emt 0:00:07]} 32. Qd6 {[%emt 0:00:31]} Qa7 {[%emt 0:00:22]} 33. Qd4 {[%emt 0:01:28]} Qc7 {[%emt 0:01:54]} 34. Qd6 {[%emt 0:01:08]} Qa7 {[%emt 0:00:07]} 35. Rd3 {[%emt 0:00:34]} Rc8 {[%emt 0:01:03]} 36. Qd4 {[%emt 0:01:00]} Qb7 {[%emt 0:00:39]} 37. Kf2 {[%emt 0:00:33]} Ng6 {[%emt 0:01:13]} 38. f4 {[%emt 0:00:41]} Nf8 {[%emt 0:00:58]} 39. h4 {[%emt 0:01:20]} Rc7 {[%emt 0:01:11]} 40. Qe5 {[%emt 0:00:00]} Nd7 {[%emt 0:00:00]} 41. Qxa5 {[%emt 0:18:22]} Nf6 $1 {[%emt 0:18:49]} 42. Rd4 {[%emt 0:05:22]} Rd7 {[%emt 0:03:05]} 43. Ke3 {[%emt 0:03:13]} Ng4+ {[%emt 0:04:49]} 44. Kd3 {[%emt 0:00:01]} Nf2+ {[%emt 0:00:07]} 45. Ke3 {[%emt 0:00:01]} Rxd4 {[%emt 0:06:34]} 46. Kxd4 {[%emt 0:00:02]} Nxe4 $2 {[%emt 0:00:16][%mdl 8192]} (46... g6 $11 {and Black is okay.}) 47. Qa6 $18 {[%emt 0:01:22]} Qxa6 {[%emt 0:00:19]} 48. Bxa6 {[%emt 0:00:02]} Nxg3 {[%emt 0:00:13]} 49. Kc5 {[%emt 0:01:13]} Nh5 {[%emt 0:01:00]} 50. Kxb4 {[%emt 0:00:13]} Kf8 {[%emt 0:00:32]} 51. Bb7 $2 {[%emt 0:03:15]} (51. a4 $18) 51... Ke7 $11 {[%emt 0:00:42]} 52. Kb5 {[%emt 0:02:26]} Kd7 $1 {[%emt 0:02:22]} 53. Kb6 {[%emt 0:01:11]} Nxf4 {[%emt 0:00:06]} 54. a4 {[%emt 0:00:14]} Nd5+ {[%emt 0:00:22]} 55. Bxd5 {[%emt 0:00:44]} exd5 {[%emt 0:00:05]} 56. Kc5 {[%emt 0:00:07]} (56. a5 $5 d4 $8 (56... g5 $2 57. a6 $18) 57. a6 $11 (57. b4 d3 $17)) 1/2-1/2

[Event "Tsaghkadzor Open 2024"]
[Site "Tsaghkadzor"]
[Date "2024.10.04"]
[Round "7.5"]
[White "Davtyan, Arsen"]
[Black "Nozdrachev, Vladislav"]
[Result "*"]
[WhiteElo "2377"]
[BlackElo "2515"]
[Annotator "TA"]
[PlyCount "33"]
[EventDate "2024.09.13"]
[EventType "swiss"]
[EventCountry "ARM"]
[SourceTitle "playchess.com"]
[Source "ChessBase"]
[SourceQuality "1"]
[TimeControl "40/5400+30:1800+30"]

{[%evp 14,19,69,70,53,42,65,64]} 1. d4 {[%emt 0:00:02]} d5 {[%emt 1:31:00]} 2. c4 {[%emt 0:00:05]} e6 {[%emt 0:00:03]} 3. Nf3 {[%emt 0:00:16]} Nf6 {[%emt 1:31:48]} 4. Nc3 {[%emt 0:00:12]} Be7 {[%emt 0:00:05]} 5. Bf4 {[%emt 0:00:09]} O-O {[%emt 1:32:37]} 6. e3 {[%emt 0:00:05]} b6 {[%emt 0:00:05]} 7. Bd3 {[%emt 0:05:41]} dxc4 {[%emt 0:01:55] 7...Ba6 zet een nieuwe trend.} 8. Bxc4 {[%emt 0:00:04] Wit staat iets beter.} Bb7 {[%emt 1:32:01] D37: Damegambiet Geweigerd: 5 Lf4.} 9. O-O {[%emt 0:03:06]} a6 {[%emt 0:01:27] OK} 10. Qe2 {[%emt 0:04:26] OK:         	---       	Zwart=1} {Predecessor:} b5 $146 11. Bd3 Nbd7 12. Rfd1 Bd6 13. Ne5 Qe7 14. Rac1 Rfd8 15. Bg3 h6 16. e4 Bxe5 17. dxe5 {0-1 Le,Q (2709)-Duda,J (2750) Charity Cup KO rapid 2022 (2.11)} *